bitfinex-derivatives/quotes_ETHF0:USTF0_20250205
["timestamp","ask_amount","ask_price","bid_price","bid_amount"]
[1738792373511,0.00539171,2782.3,2782.2,3.75283281]
[1738792373905,0.00539171,2782.3,2782.2,3.2078]
[1738792374903,0.00539171,2782.3,2782.2,3.753698]
[1738792377709,3.81961715,2783.2,2782.2,8.753698]
[1738792377913,3.81961715,2783.2,2783.1,3.2078]
[1738792379711,0.57491,2782.9,2782.8,3.2078]
[1738792379912,0.57491,2782.9,2782.5,3.2078]
[1738792379913,3.81961715,2782.9,2782.5,3.2078]
[1738792380216,0.57494,2782.8,2782.5,3.2078]
[1738792380412,4.39452715,2782.9,2782.5,3.2078]
[1738792380719,0.57494,2782.8,2782.5,3.2078]
[1738792380918,3.81961715,2782.9,2782.5,3.2078]
[1738792381308,1.38,2783.0,2782.5,3.2078]
[1738792381714,1.38,2783.0,2782.6,0.54727594]
[1738792381909,1.9549,2783.0,2782.8,3.2078]
[1738792382116,1.38,2783.0,2782.8,3.2078]
[1738792382316,2.995,2783.2,2782.8,3.2078]
[1738792382523,2.995,2783.2,2783.1,3.2078]
[1738792382713,0.57484,2783.2,2783.1,3.2078]
[1738792383820,3.81961715,2783.3,2783.1,3.2078]
[1738792384125,0.57484,2783.2,2783.1,3.2078]
[1738792384317,4.39445715,2783.3,2783.1,3.2078]
[1738792384714,3.81961715,2783.3,2783.1,3.2078]
[1738792385213,3.81961715,2784.5,2783.1,12.60227715]
[1738792385413,3.81961715,2784.5,2784.3,3.2078]
[1738792385617,1.38,2784.7,2784.3,3.2078]
[1738792386219,5.19961715,2784.7,2784.3,3.2078]
[1738792386410,3.81961715,2785.1,2784.6,3.2078]
[1738792386612,1.38,2785.0,2784.6,3.2078]
[1738792387717,1.38,2785.0,2784.9,3.2078]
[1738792389315,3.81961715,2785.1,2784.9,3.2078]
[1738792389316,5.19961715,2785.1,2784.9,3.2078]
[1738792389516,3.2078,2785.6,2784.9,3.2078]
[1738792389517,3.81961715,2785.5,2784.9,3.2078]
[1738792389717,1.379,2785.4,2785.3,3.2078]
[1738792389920,3.81961715,2785.5,2785.3,3.2078]
[1738792390221,3.81961715,2785.8,2785.3,3.2078]
[1738792390423,3.81961715,2785.8,2785.7,3.2078]
[1738792390813,1.379,2785.9,2785.7,3.2078]
[1738792394817,3.81961715,2785.8,2785.4,3.2078]
[1738792395023,3.81961715,2785.5,2785.4,3.2078]
[1738792395223,5.19861715,2785.8,2785.4,3.2078]
[1738792395425,0.57435,2785.6,2785.4,3.2078]
[1738792395621,3.81961715,2785.5,2784.6,3.74872543]
[1738792395826,3.81961715,2784.9,2784.6,3.74872543]
[1738792396125,1.379,2784.8,2784.6,3.74872543]
[1738792396324,1.379,2784.8,2784.6,3.2078]
[1738792396925,1.379,2785.1,2784.6,3.2078]
[1738792397322,3.81961715,2785.2,2785.0,3.2078]
[1738792398023,3.81961715,2785.2,2784.6,3.2078]
[1738792398326,3.81961715,2784.9,2784.6,3.2078]
[1738792398825,3.81961715,2785.2,2784.6,3.2078]
[1738792399725,3.81961715,2785.2,2785.0,3.2078]
[1738792399920,4.36171715,2785.5,2785.0,3.2078]
[1738792400117,4.93609715,2785.5,2785.0,3.2078]
[1738792400316,4.36171715,2785.5,2785.0,3.2078]
[1738792400521,4.93609715,2785.5,2785.0,3.2078]
[1738792401222,4.36171715,2785.5,2785.0,3.2078]
[1738792401726,4.93609715,2785.5,2785.0,3.2078]
[1738792402228,4.36171715,2785.5,2785.0,3.2078]
[1738792402624,5.19761715,2785.5,2785.3,3.2078]
[1738792403318,1.378,2785.5,2785.3,3.2078]
[1738792403523,3.81961715,2786.2,2785.3,3.2078]
[1738792403829,5.19761715,2786.2,2785.9,3.2078]
[1738792404629,3.81961715,2786.2,2785.9,3.2078]
[1738792404930,3.81961715,2786.5,2785.9,3.2078]
[1738792405228,1.378,2786.4,2786.3,3.2078]
[1738792406420,3.81961715,2786.8,2786.3,3.2078]
[1738792406620,5.5341,2787.6,2785.9,0.00539171]
[1738792406621,3.81961715,2787.3,2786.6,3.2078]
[1738792406829,3.81961715,2787.6,2787.1,3.2078]
[1738792407025,5.19761715,2787.6,2787.1,3.2078]
[1738792407333,3.81961715,2787.3,2787.1,3.21318146]
[1738792411236,0.57402,2787.2,2787.1,0.00538146]
[1738792411436,1.95202,2787.2,2787.1,0.00538146]
[1738792411632,2.52572,2787.2,2787.1,0.00538146]
[1738792411932,1.9517,2787.2,2787.1,0.00538146]
[1738792412335,2.52572,2787.2,2787.1,0.00538146]
[1738792412530,7.02741715,2787.3,2787.1,0.00538146]
[1738792412736,1.378,2787.2,2787.1,0.00538146]
[1738792413425,3.81961715,2787.3,2787.1,0.00538146]
[1738792413630,1.378,2787.2,2787.1,0.00538146]
[1738792414233,3.81961715,2787.3,2787.1,3.21318146]
[1738792414440,1.378,2787.2,2787.1,3.21318146]
[1738792414637,3.81961715,2787.6,2787.1,3.21318146]
[1738792414831,1.378,2787.4,2787.1,3.21318146]
[1738792415030,2.995,2787.9,2787.1,3.21318146]
[1738792415031,6.81461715,2787.9,2787.2,0.5723]
[1738792415228,6.81461715,2787.9,2787.5,3.2078]
[1738792415430,6.81461715,2787.9,2787.8,3.2078]
[1738792415731,3.81961715,2787.9,2787.8,3.2078]
[1738792416235,4.39348715,2787.9,2787.5,3.2078]
[1738792416434,3.81961715,2787.6,2787.5,3.2078]
[1738792418331,0.5603,2788.4,2787.5,3.2078]
[1738792418332,3.81961715,2787.9,2787.5,3.2078]
[1738792418527,1.377,2788.4,2787.8,3.2078]
[1738792418729,1.377,2788.4,2788.1,3.2078]
[1738792420234,3.81961715,2788.5,2788.1,3.7454]
[1738792420429,3.81961715,2788.5,2788.4,3.2078]
[1738792421640,5.19661715,2788.5,2788.4,3.2078]
[1738792425441,5.19661715,2788.5,2787.9,3.2078]
[1738792425442,10.19661715,2788.5,2787.9,3.2078]
[1738792425740,0.57388,2787.9,2787.6,3.2078]
[1738792425938,0.574,2787.4,2787.2,3.2078]
[1738792426131,5.19661715,2787.3,2787.1,0.00538146]
[1738792426536,5.77062715,2787.3,2787.1,0.00538146]
[1738792426737,5.19661715,2787.3,2787.1,0.00538146]
[1738792427337,5.77062715,2787.3,2787.1,0.00538146]
[1738792427839,0.57402,2787.2,2787.1,0.00538146]
[1738792428140,5.77062715,2787.3,2787.1,0.00538146]
[1738792428739,5.19661715,2787.3,2787.1,0.00538146]
[1738792431049,5.77062715,2787.3,2787.1,0.00538146]
[1738792432137,0.57402,2787.2,2787.1,0.00538146]
[1738792432647,5.19661715,2787.3,2787.1,0.00538146]
[1738792432943,0.57417,2786.5,2786.2,3.2078]
[1738792433144,3.81961715,2786.3,2786.2,3.2078]
[1738792434136,1.377,2786.4,2786.2,3.2078]
[1738792434343,1.377,2786.4,2786.3,0.5805]
[1738792436947,2.00972,2786.3,2785.4,3.2078]
[1738792437247,3.81961715,2785.8,2785.6,3.2078]
[1738792437747,3.81961715,2786.4,2785.6,3.2078]
[1738792437947,3.81961715,2786.4,2786.0,3.2078]
[1738792438245,4.39381715,2786.4,2786.1,1.132]
[1738792438643,4.39380715,2786.4,2786.1,1.132]
[1738792438947,5.19661715,2786.4,2786.1,1.132]
[1738792440446,5.19661715,2786.4,2786.3,3.2078]
[1738792441342,5.77081715,2786.4,2786.1,1.132]
[1738792441644,5.19661715,2786.4,2786.1,1.132]
[1738792442543,5.77081715,2786.4,2786.1,1.132]
[1738792442740,3.04057801,2786.2,2786.1,1.132]
[1738792442940,0.57425,2786.1,2786.0,3.2078]
[1738792443146,0.5743,2785.9,2785.7,0.57438146]
[1738792443447,4.41757801,2785.8,2785.7,0.00538146]
[1738792444855,1.377,2785.8,2785.7,0.00538146]
[1738792446141,1.378,2785.8,2785.7,0.00538146]
[1738792448555,1.95231,2785.8,2785.7,0.00538146]
[1738792448739,1.378,2785.8,2785.7,0.00538146]
[1738792449155,1.95231,2785.8,2785.7,0.00538146]
[1738792449349,1.378,2785.8,2785.7,0.00538146]
[1738792449955,1.95231,2785.8,2785.7,0.00538146]
[1738792452655,0.57443,2785.2,2785.1,3.2078]
[1738792452961,0.57443,2785.2,2783.2,1.43707]
[1738792452962,0.57453,2784.8,2784.5,3.2078]
[1738792453149,4.38579105,2784.7,2784.3,0.5595]
[1738792453556,3.81125105,2784.7,2784.3,0.5595]
[1738792453856,3.81125105,2784.7,2784.3,1.1241]
[1738792454253,3.81125105,2784.7,2784.5,3.2078]
[1738792454450,0.00538146,2784.8,2784.5,3.2078]
[1738792454763,3.81125105,2785.0,2784.5,3.2078]
[1738792454957,3.81125105,2785.0,2784.9,3.2078]
[1738792456758,12.01905105,2785.0,2784.3,4.3319]
[1738792456957,0.57462,2784.3,2784.2,0.00538146]
[1738792457157,1.95162,2784.3,2784.2,0.00538146]
[1738792459054,1.377,2784.3,2784.2,0.00538146]
[1738792459959,1.95162,2784.3,2784.2,0.00538146]
[1738792460155,1.377,2784.3,2784.2,0.00538146]
[1738792460559,1.95162,2784.3,2784.2,0.00538146]
[1738792460955,4.5848,2784.3,2783.7,3.7757]
[1738792461161,3.81125105,2783.8,2783.7,3.7757]
[1738792461560,3.81125105,2783.8,2783.7,3.2078]
[1738792462156,1.377,2784.3,2783.7,3.7852]
[1738792462157,3.81125105,2784.1,2783.7,3.7852]
[1738792462463,3.81125105,2784.1,2783.7,4.3164]
[1738792462863,3.81125105,2783.8,2783.7,3.7852]
[1738792463758,4.38597105,2783.8,2783.6,0.5275]
[1738792464762,3.81125105,2783.8,2783.6,3.7353]
[1738792465862,0.57474,2783.7,2783.6,3.7353]
[1738792466064,0.57476,2783.6,2783.5,0.00538146]
[1738792467859,1.0513,2783.7,2783.5,0.00538146]
[1738792468052,1.62605,2783.7,2783.5,0.00538146]
[1738792468659,0.57476,2783.6,2783.5,0.00538146]
[1738792469967,1.95276,2783.6,2783.5,0.00538146]
[1738792470963,3.81125105,2783.8,2783.5,0.00538146]
[1738792471163,0.57475,2783.7,2783.5,3.21318146]
[1738792471366,5.18925105,2783.8,2783.5,3.21318146]
[1738792472668,1.378,2783.7,2783.5,3.21318146]
[1738792473066,3.81125105,2783.8,2783.5,3.21318146]
[1738792473273,3.81125105,2783.8,2783.6,1.6865]
[1738792473274,5.18925105,2783.8,2783.6,1.6865]
[1738792473471,1.378,2783.8,2783.6,1.6865]
[1738792475570,1.378,2784.0,2783.6,1.6865]
[1738792475768,3.81125105,2784.4,2783.9,3.2078]
[1738792475969,3.81125105,2784.4,2784.2,3.2078]
[1738792476170,3.81125105,2784.4,2784.3,1.1155]
[1738792478470,3.81125105,2784.7,2784.3,1.1155]
[1738792478770,3.81125105,2784.7,2784.5,3.2078]
[1738792479170,3.81125105,2785.0,2784.5,3.2078]
[1738792479377,5.18825105,2785.0,2784.5,3.2078]
[1738792481467,5.76273105,2785.0,2784.5,3.2078]
[1738792482477,5.18825105,2785.0,2784.5,3.2078]
[1738792484673,0.57455,2784.6,2784.5,3.2078]
[1738792484871,3.04371909,2784.7,2784.5,3.2078]
[1738792486174,0.57455,2784.6,2784.5,3.2078]
[1738792486678,3.61826909,2784.7,2784.5,3.2078]
[1738792487068,3.04371909,2784.7,2784.5,3.2078]
[1738792487271,0.57455,2784.6,2784.5,3.2078]
[1738792487779,3.61826909,2784.7,2784.5,3.2078]
[1738792488075,3.04371909,2784.7,2784.5,3.2078]
[1738792488474,3.04371909,2784.7,2784.6,1.1532]
[1738792488675,1.377,2784.8,2784.6,1.1532]
[1738792488875,1.377,2784.8,2784.6,1.728]
[1738792489076,3.04371909,2785.0,2784.6,1.728]
[1738792489278,0.00538146,2785.2,2784.9,3.2078]
[1738792489581,3.04371909,2785.0,2784.9,3.2078]
[1738792490468,0.00538146,2785.2,2784.9,3.2078]
[1738792491678,3.81275369,2785.1,2784.9,3.2078]
[1738792495080,0.00538146,2785.2,2784.9,3.2078]
[1738792495381,3.81275369,2785.7,2784.9,3.2078]
[1738792495576,3.81275369,2785.7,2785.6,3.2078]
[1738792495776,3.81275369,2785.7,2785.3,3.2078]
[1738792495980,3.81275369,2785.4,2785.3,3.2078]
[1738792497582,4.38714369,2785.4,2785.3,3.2078]
[1738792497783,4.38715369,2785.4,2785.1,0.00538146]
[1738792497984,0.57442,2785.3,2785.1,0.00538146]
[1738792498283,4.38715369,2785.4,2785.1,0.00538146]
[1738792498488,3.81275369,2785.4,2785.1,0.00538146]
[1738792498684,4.38715369,2785.4,2785.1,0.00538146]
[1738792499388,3.81275369,2785.4,2785.1,0.00538146]
[1738792499587,4.38714369,2785.4,2785.1,0.00538146]
[1738792500383,3.81275369,2785.4,2785.1,0.00538146]
[1738792500588,3.78223,2785.2,2785.1,0.00538146]
[1738792500985,0.57443,2785.2,2785.1,0.00538146]
[1738792507087,3.81275369,2785.4,2784.6,0.5795]
[1738792507387,4.92606662,2785.5,2784.5,3.2078]
[1738792507388,3.81275369,2784.7,2784.5,3.2078]
[1738792507587,1.376,2784.6,2784.5,3.2078]
[1738792507792,3.81275369,2784.7,2784.5,3.2078]
[1738792508596,3.81275369,2784.7,2784.6,0.5794]
[1738792509399,1.376,2784.9,2784.6,1.12689177]
[1738792509596,3.81275369,2785.0,2784.8,3.2078]
[1738792509895,3.81275369,2785.3,2784.9,1.0797]
[1738792510093,3.81275369,2785.0,2784.9,1.0797]
[1738792510704,3.04322209,2785.0,2784.9,1.0797]
[1738792512493,3.04322209,2785.0,2784.8,3.2078]
[1738792512692,3.04322209,2785.0,2784.6,0.5794]
[1738792512893,3.04322209,2784.7,2784.6,0.5794]
[1738792514193,3.04322209,2784.7,2784.6,1.12693074]
[1738792514392,3.04322209,2785.0,2784.6,1.12693074]
[1738792514587,3.04322209,2785.0,2784.8,3.2078]
[1738792514794,3.04322209,2785.3,2784.9,0.5403]
[1738792514987,3.04322209,2785.3,2785.1,3.2078]
[1738792515192,3.04322209,2785.3,2785.2,0.5735]
[1738792515398,3.04322209,2785.3,2785.2,1.1529]
[1738792516693,3.04322209,2785.3,2785.2,1.70025034]
[1738792516890,0.00538146,2785.6,2785.2,6.70025034]
[1738792517093,3.04322209,2786.4,2785.5,3.2078]
[1738792517296,3.04322209,2786.4,2786.2,3.2078]
[1738792517596,4.41922209,2786.7,2786.3,0.537]
[1738792517797,3.04322209,2786.7,2786.5,3.2078]
[1738792518002,3.04322209,2786.7,2786.3,1.64005034]
[1738792518201,3.04322209,2786.4,2786.3,1.64005034]
[1738792518403,3.04322209,2786.4,2786.3,1.6454318]
[1738792518601,3.04322209,2786.4,2786.3,0.00538146]
[1738792522304,3.61740209,2786.4,2786.3,0.00538146]
[1738792523199,3.04322209,2786.4,2786.3,0.00538146]
[1738792523908,2.92338146,2786.9,2786.3,3.21318146]
[1738792524202,2.92338146,2786.9,2786.7,3.2078]
[1738792524408,3.04322209,2786.8,2786.7,3.2078]
[1738792525306,3.04322209,2786.8,2786.4,3.2078]
[1738792526005,3.04322209,2786.8,2786.7,3.2078]
[1738792526200,2.92338146,2786.9,2786.7,3.2078]
[1738792526201,0.00538146,2786.9,2786.7,3.2078]
[1738792526404,3.04322209,2787.4,2786.8,0.5243]
[1738792526603,3.04322209,2787.4,2787.3,3.2078]
[1738792527296,4.41822209,2787.7,2787.3,3.2078]
[1738792527502,3.04322209,2788.0,2787.6,3.2078]
[1738792527704,4.41822209,2788.3,2787.9,3.2078]
[1738792527999,4.41822209,2788.3,2788.2,3.2078]
[1738792528401,3.04322209,2788.3,2788.2,3.2078]
[1738792530899,3.61701209,2788.3,2788.0,0.5689]
[1738792531104,3.61702209,2788.3,2788.0,0.5689]
[1738792531403,3.04322209,2788.3,2788.0,0.5689]
[1738792533312,3.04322209,2788.3,2787.9,3.2078]
[1738792533498,0.57387,2787.9,2787.8,0.00538146]
[1738792535009,0.57397,2787.5,2787.3,3.2078]
[1738792535210,4.41722209,2787.4,2787.3,3.2078]
[1738792536506,0.57402,2787.2,2787.1,0.00538146]
[1738792536703,3.04322209,2787.4,2787.1,0.00538146]
[1738792536908,3.04322209,2787.4,2787.3,3.2078]
[1738792540104,4.41722209,2787.7,2787.3,3.2078]
[1738792540303,4.41722209,2787.7,2787.6,3.2078]
[1738792540618,3.2078,2788.1,2787.6,3.2078]
[1738792540912,3.04322209,2789.2,2788.0,3.2078]
[1738792541112,3.04322209,2789.2,2788.9,3.2078]
[1738792542716,1.37938146,2789.3,2788.9,3.2078]
[1738792543512,0.00538146,2789.3,2788.9,3.2078]
[1738792545412,3.80200683,2789.2,2788.9,3.2078]
[1738792547116,3.80200683,2789.2,2788.8,0.00538146]
[1738792547717,3.80200683,2788.9,2788.8,0.00538146]
[1738792547911,4.37567683,2788.9,2788.8,0.00538146]
[1738792548323,7.58347683,2788.9,2788.8,0.00538146]
[1738792548822,7.58347683,2788.9,2787.9,3.2078]
[1738792548823,19.09337574,2788.9,2787.6,3.2078]
[1738792549023,3.80200683,2788.0,2787.6,3.2078]
[1738792549217,5.17600683,2788.0,2787.6,3.2078]
[1738792549420,3.80200683,2788.0,2787.6,3.2078]
[1738792549626,1.374,2787.9,2787.6,3.2078]
[1738792551320,3.7816,2788.3,2787.6,3.2078]
[1738792551321,3.2078,2788.1,2787.6,3.2078]
[1738792551818,3.80200683,2788.3,2787.6,3.2078]
[1738792552020,3.80200683,2788.6,2787.9,3.2078]
[1738792552420,4.37580683,2788.3,2787.9,3.2078]
[1738792552617,3.80200683,2788.3,2787.9,3.2078]
[1738792552818,7.58359683,2788.3,2787.7,0.5495]
[1738792553027,3.80200683,2788.0,2787.7,0.5495]
[1738792553821,7.00980683,2788.3,2787.7,0.5495]
[1738792554016,3.78163,2788.2,2787.7,0.5495]
[1738792554221,3.80200683,2788.0,2787.6,3.2078]
[1738792557818,0.57388,2787.9,2787.6,3.2078]
[1738792558018,3.80200683,2788.0,2787.6,3.2078]
[1738792559927,4.37586683,2788.0,2787.6,3.2078]
[1738792560127,3.80200683,2787.7,2787.5,0.00538146]
[1738792560323,0.57414,2786.7,2786.1,0.28983514]
[1738792560518,3.80200683,2786.3,2785.7,0.5712]
[1738792560831,1.4349,2787.5,2785.7,0.5712]
[1738792560832,5.17600683,2786.4,2785.8,3.2078]
[1738792561026,1.374,2786.5,2785.8,3.2078]
[1738792561326,5.17600683,2786.7,2785.9,0.54430825]
[1738792561523,3.80738829,2786.4,2785.9,0.54968971]
[1738792562322,3.80738829,2786.4,2785.9,0.00538146]
[1738792562626,3.80200683,2786.0,2785.9,0.00538146]
[1738792564625,3.80738829,2786.4,2785.9,0.00538146]
[1738792565234,3.80200683,2786.0,2785.9,0.00538146]
[1738792565632,4.37627683,2786.0,2785.9,0.00538146]
[1738792565829,3.80200683,2786.0,2785.9,0.00538146]
[1738792567543,4.37627683,2786.0,2785.9,0.00538146]
[1738792567845,3.80200683,2786.0,2785.9,0.00538146]
[1738792571536,4.37627683,2786.0,2785.9,0.00538146]
[1738792572031,4.37627683,2786.0,2785.3,0.5435]
[1738792572032,7.60401366,2786.0,2785.3,0.5435]
[1738792572232,0.57457,2784.6,2784.4,1.61929815]
[1738792572443,0.57455,2784.7,2784.5,0.5801]
[1738792572647,0.57455,2784.6,2784.5,0.5801]
[1738792572950,1.374,2784.8,2784.4,0.5426]
[1738792573242,1.374,2784.8,2784.3,0.00538146]
[1738792573243,3.2078,2784.6,2784.3,0.00538146]
[1738792573447,3.80200683,2784.4,2784.3,0.00538146]
[1738792575942,4.37660683,2784.4,2784.3,0.00538146]
[1738792576245,3.80200683,2784.4,2783.6,0.5801]
[1738792576442,3.80200683,2783.7,2783.6,0.5801]
[1738792576641,3.80200683,2783.7,2782.9,1.1103]
[1738792576838,3.80200683,2783.4,2783.1,3.2078]
[1738792577551,3.80200683,2783.4,2783.0,0.56558146]
[1738792577749,3.80200683,2783.1,2782.2,0.54199815]
[1738792577946,3.80200683,2783.1,2780.4,11.143838]
[1738792577947,7.60401366,2782.3,2780.7,0.5602]
[1738792578150,3.80200683,2780.8,2780.7,0.5602]
[1738792578450,3.80200683,2781.1,2780.7,4.67282702]
[1738792578649,3.80200683,2781.1,2780.6,8.44211575]
[1738792578844,3.80200683,2781.1,2780.7,3.2078]
[1738792579047,3.80739873,2781.1,2780.6,8.44573818]
[1738792579247,3.80739873,2781.1,2780.9,3.2078]
[1738792579452,3.80739873,2781.1,2780.6,3.21142243]
[1738792579751,3.80739873,2781.1,2780.9,3.2078]
[1738792580248,3.80739873,2781.1,2780.6,0.00362243]
[1738792580449,7.00980683,2780.7,2780.6,0.00362243]
[1738792580652,7.00980683,2780.7,2779.7,0.5311]
[1738792580953,3.80200683,2779.9,2779.2,11.143838]
[1738792581154,7.00980683,2779.5,2779.1,11.23863326]
[1738792581353,10.81181366,2779.2,2779.1,5.10058517]
[1738792581546,10.81181366,2779.2,2778.7,14.49651941]
[1738792581746,7.00980683,2778.8,2778.7,5.78586885]
[1738792581947,7.00980683,2778.8,2778.7,1.93936885]
[1738792582253,11.41180683,2778.8,2778.7,1.21729885]
[1738792582449,3.2078,2778.8,2778.7,1.21729885]
[1738792582755,3.80200683,2779.0,2777.9,3.2078]
[1738792583052,3.80200683,2779.0,2778.2,3.2078]
[1738792583249,3.80200683,2778.6,2778.0,0.5436]
[1738792583449,3.80200683,2778.2,2777.5,3.2078]
[1738792583651,7.00980683,2777.8,2777.0,3.2078]
[1738792583854,3.80200683,2779.0,2776.5,5.7135159]
[1738792583855,3.2078,2777.3,2776.5,5.7135159]
[1738792584051,3.80200683,2777.0,2776.5,1.1194]
[1738792584249,7.00980683,2777.0,2776.5,0.5758]
[1738792584558,3.2078,2776.9,2776.5,0.5758]
[1738792584758,3.2078,2777.3,2776.6,3.2078]
[1738792585051,4.6418,2777.3,2776.6,3.2078]
[1738792585658,1.438,2777.6,2776.9,3.2078]
[1738792585951,1.438,2777.6,2775.9,4.18397723]
[1738792585952,3.2078,2777.1,2775.9,3.2078]
[1738792586154,3.2078,2776.6,2775.9,3.2078]
[1738792586358,1.452,2776.5,2775.9,3.2078]
[1738792587456,3.2078,2776.4,2775.9,3.2078]
[1738792587957,1.452,2776.5,2775.5,3.759]
[1738792587958,3.2078,2776.3,2775.5,3.759]
[1738792588161,1.452,2776.5,2775.5,3.759]
[1738792588364,1.452,2776.5,2776.0,3.2078]
[1738792588655,0.00540171,2776.3,2775.6,3.2078]
[1738792590155,0.00540171,2776.3,2775.9,3.2078]
[1738792590351,3.2078,2776.2,2775.6,3.2078]
[1738792590756,0.00540171,2776.3,2775.6,3.2078]
[1738792591561,0.00540171,2776.3,2775.3,3.2078]
[1738792591562,3.2078,2776.0,2775.3,3.2078]
[1738792592359,3.21320171,2776.3,2775.4,3.2078]
[1738792592557,0.00540171,2776.3,2776.0,3.2078]
[1738792593063,3.2078,2777.1,2776.0,8.2078]
[1738792593257,1.453,2777.3,2775.6,0.5253]
[1738792593258,1.452,2777.3,2775.6,0.5253]
[1738792593461,1.452,2777.3,2776.6,3.2078]
[1738792593868,3.2078,2777.8,2775.7,12.3345005]
[1738792593869,3.2078,2777.8,2776.7,7.86620813]
[1738792594166,1.454,2778.1,2777.5,3.2078]
[1738792594466,3.2078,2778.7,2777.9,3.2078]
[1738792594662,3.2078,2778.7,2777.9,8.2078]
[1738792594864,1.458,2779.0,2778.4,3.2078]
[1738792595055,3.2078,2779.1,2778.4,3.2078]
[1738792595367,3.2078,2779.4,2778.7,3.2078]
[1738792595571,3.2078,2779.1,2778.2,3.2078]
[1738792595862,0.00540171,2779.3,2778.8,0.00540171]
[1738792596866,1.46940171,2779.3,2778.8,0.00540171]
[1738792598258,4.18397723,2779.2,2778.8,0.00540171]
[1738792600059,3.2078,2778.9,2778.8,0.00540171]
[1738792600462,3.2078,2779.2,2778.8,0.00540171]
[1738792600667,3.2078,2778.9,2778.8,0.00540171]
[1738792602159,3.2078,2779.2,2778.8,0.00540171]
[1738792602858,0.00540171,2779.3,2778.9,3.2078]
[1738792603066,3.2078,2779.7,2779.1,3.2078]
[1738792603265,4.18397723,2779.6,2778.8,0.00540171]
[1738792603461,3.2078,2779.5,2778.8,0.00540171]
[1738792604266,3.2078,2779.0,2778.8,0.00540171]
[1738792604870,1.466,2779.2,2778.8,0.00540171]
[1738792605263,3.2078,2779.1,2778.8,0.00540171]
[1738792608374,0.57573,2778.9,2778.8,0.00540171]
[1738792608565,3.2078,2779.1,2778.8,0.00540171]
[1738792608771,3.78349,2779.1,2778.8,0.00540171]
[1738792608966,6.2028,2779.1,2778.8,0.00540171]
[1738792609766,3.2078,2779.1,2778.8,0.00540171]
[1738792610273,3.21320171,2779.4,2778.8,0.00540171]
[1738792610470,3.2078,2779.1,2778.8,0.00540171]
[1738792611468,1.465,2779.2,2778.8,0.00540171]
[1738792612065,5.64897723,2779.2,2778.8,0.00540171]
[1738792612270,3.2078,2779.1,2778.8,0.00540171]
[1738792612574,3.2078,2779.1,2779.0,0.00606244]
[1738792612772,0.57583,2778.5,2777.6,0.5282]
[1738792612976,7.39177723,2778.3,2777.6,0.5282]
[1738792613169,3.2078,2778.0,2777.1,3.2078]
[1738792613370,3.2078,2778.0,2777.5,3.2078]
[1738792613574,1.464,2778.2,2777.3,0.5639]
[1738792613780,0.00540171,2778.0,2777.5,0.00540171]
[1738792614078,0.00540171,2778.0,2777.7,3.2078]
[1738792614273,0.00540171,2778.0,2777.5,0.00540171]
[1738792614480,0.00540171,2778.0,2777.6,3.2078]
[1738792614672,0.00540171,2778.0,2777.5,0.00540171]
[1738792614874,0.00540171,2778.0,2777.6,3.2078]
[1738792615275,0.00540171,2778.0,2777.5,0.00540171]
[1738792615671,0.00540171,2778.0,2777.6,3.2078]
[1738792615872,0.00540171,2778.0,2777.5,0.00540171]
[1738792616067,0.00540171,2778.0,2777.6,3.2078]
[1738792617577,0.00540171,2778.0,2777.5,0.00540171]
[1738792617876,0.00540171,2778.0,2777.6,3.2078]
[1738792618083,0.00540171,2778.0,2777.5,0.00540171]
[1738792618269,0.58133171,2778.0,2777.5,0.00540171]
[1738792618471,0.00540171,2778.0,2777.5,0.00540171]
[1738792619476,0.00540171,2778.0,2777.6,3.2078]
[1738792619770,0.00540171,2778.0,2777.5,0.00540171]
[1738792619979,0.00540171,2778.0,2777.6,3.2078]
[1738792620480,0.00540171,2778.0,2777.5,0.00540171]
[1738792620676,0.00540171,2778.0,2777.6,3.2078]
[1738792621281,3.2078,2778.5,2777.9,3.2078]
[1738792621778,3.2078,2778.8,2777.9,3.2078]
[1738792622374,0.00540171,2778.6,2777.9,3.2078]
[1738792622578,0.00540171,2778.6,2778.4,3.2078]
[1738792623287,1.453,2779.3,2778.4,8.2078]
[1738792623582,3.2078,2779.4,2778.8,3.2078]
[1738792624080,3.2078,2779.4,2778.5,0.5511]
[1738792624280,0.57565,2779.3,2778.5,0.5511]
[1738792624583,3.2078,2779.1,2778.5,0.5511]
[1738792625380,3.2078,2779.1,2778.1,3.2078]
[1738792625579,3.2078,2778.2,2777.8,3.2078]
[1738792625779,1.451,2778.4,2777.7,0.5676]
[1738792625983,1.451,2778.4,2777.8,3.2078]
[1738792626179,3.2078,2779.1,2778.1,3.2078]
[1738792626583,3.2078,2779.1,2777.9,0.5618]
[1738792626783,3.2078,2779.1,2777.9,3.7696]
[1738792627179,3.2078,2779.1,2778.4,3.2078]
[1738792629286,3.2078,2779.1,2777.9,0.5618]
[1738792629287,0.00540171,2779.2,2778.5,3.2078]
[1738792630082,0.00540171,2779.2,2778.6,0.5497]
[1738792630283,0.00540171,2779.2,2778.8,3.2078]
[1738792630892,3.2078,2779.0,2778.7,0.5597]
[1738792631387,0.00540171,2779.2,2778.7,0.5597]
[1738792632191,1.442,2779.6,2778.7,0.5597]
[1738792632192,3.2078,2779.6,2778.9,3.2078]
[1738792632386,3.2078,2779.6,2779.0,0.5353]
[1738792632787,1.441,2780.2,2779.0,0.5353]
[1738792633093,3.2078,2780.1,2779.0,0.5353]
[1738792633490,9.61615643,2780.3,2779.9,3.2078]
[1738792633789,9.61615643,2780.3,2780.0,1.1094]
[1738792634591,0.00540171,2780.4,2780.0,1.1094]
[1738792635183,0.00540171,2780.4,2780.2,3.2078]
[1738792635594,0.00540171,2780.4,2780.1,0.5259]
[1738792635803,0.57549,2780.1,2779.4,0.5259]
[1738792635985,3.2078,2779.6,2779.3,0.00540171]
[1738792640190,3.2078,2779.9,2779.3,0.00540171]
[1738792640893,3.2078,2780.1,2779.3,0.00540171]
[1738792641296,3.2078,2779.8,2779.3,0.00540171]
[1738792642798,1.428,2780.2,2779.3,0.00540171]
[1738792643097,3.2078,2780.2,2779.3,0.00540171]
[1738792643304,3.2078,2779.9,2779.3,0.00540171]
[1738792644699,4.18397723,2780.3,2779.3,0.00540171]